[Event "Titled Tuesday Blitz May 17 Late 2022"]
[White "Gurevich, Dmitry"]
[Black "Abdyzhapar, Asylbek"]
[WhiteFideId "2000407"]
[BlackFideId "13800337"]
[WhiteElo "2506"]
[BlackElo "2331"]
[Result "1-0"]
[Round "09"]
[TimeControl "180+1"]
[Date "2022.05.17"]
[WhiteClock "0:00:06"]
[BlackClock "0:01:08"]

1. d4 {[%clk 0:03:00]}  d5 {[%clk 0:02:59]} 2. c4 {[%clk 0:03:00]}  c6 {[%clk 0:02:59]} 3. e3 {[%clk 0:03:00]}  Nf6 {[%clk 0:02:59]} 4. Nc3 {[%clk 0:03:00]}  Bf5 {[%clk 0:02:58]} 5. cxd5 {[%clk 0:02:59]}  cxd5 {[%clk 0:02:59]} 6. Qb3 {[%clk 0:02:58]}  Nc6 {[%clk 0:02:59]} 7. Qxb7 {[%clk 0:02:55]}  Bd7 {[%clk 0:02:59]} 8. Qb3 {[%clk 0:02:45]}  Rb8 {[%clk 0:02:59]} 9. Qd1 {[%clk 0:02:43]}  e5 {[%clk 0:02:58]} 10. Nf3 {[%clk 0:02:36]}  e4 {[%clk 0:02:58]} 11. Ne5 {[%clk 0:02:36]}  Bd6 {[%clk 0:02:57]} 12. Nxd7 {[%clk 0:02:32]}  Qxd7 {[%clk 0:02:57]} 13. Be2 {[%clk 0:02:32]}  O-O {[%clk 0:02:56]} 14. h3 {[%clk 0:02:31]}  Bc7 {[%clk 0:02:46]} 15. a3 {[%clk 0:02:21]}  a5 {[%clk 0:02:46]} 16. Nb5 {[%clk 0:02:12]}  Bd8 {[%clk 0:02:46]} 17. Bd2 {[%clk 0:02:07]}  h5 {[%clk 0:02:42]} 18. Rc1 {[%clk 0:02:05]}  h4 {[%clk 0:02:40]} 19. Qa4 {[%clk 0:01:53]}  Ne7 {[%clk 0:02:35]} 20. Bxa5 {[%clk 0:01:32]}  Ra8 {[%clk 0:02:35]} 21. b4 {[%clk 0:01:30]}  Nf5 {[%clk 0:02:29]} 22. O-O {[%clk 0:01:22]}  Nd6 {[%clk 0:02:21]} 23. Rc2 {[%clk 0:00:49]}  Bxa5 {[%clk 0:02:20]} 24. bxa5 {[%clk 0:00:48]}  Rfb8 {[%clk 0:02:20]} 25. Rb1 {[%clk 0:00:41]}  Nfe8 {[%clk 0:02:12]} 26. Rb4 {[%clk 0:00:39]}  Nc4 {[%clk 0:01:53]} 27. Bxc4 {[%clk 0:00:35]}  dxc4 {[%clk 0:01:53]} 28. Rcxc4 {[%clk 0:00:35]}  Ra6 {[%clk 0:01:31]} 29. Nc3 {[%clk 0:00:34]}  Qxa4 {[%clk 0:01:27]} 30. Nxa4 {[%clk 0:00:30]}  Rba8 {[%clk 0:01:26]} 31. Nc5 {[%clk 0:00:27]}  Rxa5 {[%clk 0:01:25]} 32. Ra4 {[%clk 0:00:26]}  Nd6 {[%clk 0:01:23]} 33. Rxa5 {[%clk 0:00:25]}  Rxa5 {[%clk 0:01:23]} 34. Ra4 {[%clk 0:00:24]}  Rb5 {[%clk 0:01:23]} 35. Ra6 {[%clk 0:00:24]}  Rb1+ {[%clk 0:01:21]} 36. Kh2 {[%clk 0:00:23]}  Nc4 {[%clk 0:01:21]} 37. Nxe4 {[%clk 0:00:22]}  g6 {[%clk 0:01:19]} 38. g4 {[%clk 0:00:19]}  f5 {[%clk 0:01:16]} 39. gxf5 {[%clk 0:00:17]}  gxf5 {[%clk 0:01:17]} 40. Ng5 {[%clk 0:00:15]}  Nd2 {[%clk 0:01:16]} 41. Kg2 {[%clk 0:00:15]}  Rb2 {[%clk 0:01:15]} 42. Ra7 {[%clk 0:00:13]}  Kf8 {[%clk 0:01:13]} 43. a4 {[%clk 0:00:12]}  Ke8 {[%clk 0:01:12]} 44. a5 {[%clk 0:00:12]}  Ra2 {[%clk 0:01:12]} 45. a6 {[%clk 0:00:12]}  Nc4 {[%clk 0:01:13]} 46. Kf3 {[%clk 0:00:11]}  Nd6 {[%clk 0:01:11]} 47. Kf4 {[%clk 0:00:09]}  Rxf2+ {[%clk 0:01:10]} 48. Ke5 {[%clk 0:00:09]}  Nc4+ {[%clk 0:01:10]} 49. Ke6 {[%clk 0:00:09]}  Kd8 {[%clk 0:01:09]} 50. Nf7+ {[%clk 0:00:09]}  Kc8 {[%clk 0:01:09]} 51. Nd6+ {[%clk 0:00:09]}  Kb8 {[%clk 0:01:09]} 52. Rb7+ {[%clk 0:00:08]}  Ka8 {[%clk 0:01:10]} 53. Nxc4 {[%clk 0:00:08]}  Ra2 {[%clk 0:01:06]} 54. Rb6 {[%clk 0:00:07]}  Ka7 {[%clk 0:01:06]} 55. Rc6 {[%clk 0:00:07]}  Rh2 {[%clk 0:01:06]} 56. Kxf5 {[%clk 0:00:06]}  Rxh3 {[%clk 0:01:06]} 57. Kg4 {[%clk 0:00:07]}  Rh1 {[%clk 0:01:07]} 58. d5 {[%clk 0:00:07]}  h3 {[%clk 0:01:06]} 59. Kg3 {[%clk 0:00:07]}  Rd1 {[%clk 0:01:05]} 60. e4 {[%clk 0:00:05]}  Rd3+ {[%clk 0:01:05]} 61. Kh2 {[%clk 0:00:05]}  Rd4 {[%clk 0:01:05]} 62. Nd6 {[%clk 0:00:04]}  Rd3 {[%clk 0:01:03]} 63. Nb5+ {[%clk 0:00:04]}  Kb8 {[%clk 0:01:03]} 64. a7+ {[%clk 0:00:04]}  Kb7 {[%clk 0:01:03]} 65. Rc7+ {[%clk 0:00:04]}  Kb6 {[%clk 0:01:04]} 66. a8=Q {[%clk 0:00:04]}  Rd2+ {[%clk 0:01:05]} 67. Kxh3 {[%clk 0:00:03]}  Rd3+ {[%clk 0:01:06]} 68. Kg4 {[%clk 0:00:03]}  Kxb5 {[%clk 0:01:06]} 69. Kf4 {[%clk 0:00:04]}  Rb3 {[%clk 0:01:06]} 70. Ke5 {[%clk 0:00:04]}  Rb4 {[%clk 0:01:06]} 71. Qb8+ {[%clk 0:00:04]}  Ka4 {[%clk 0:01:06]} 72. Ra7+ {[%clk 0:00:04]}  Kb3 {[%clk 0:01:07]} 73. Qxb4+ {[%clk 0:00:04]}  Kxb4 {[%clk 0:01:08]} 74. Rc7 {[%clk 0:00:04]}  Kb5 {[%clk 0:01:08]} 75. d6 {[%clk 0:00:05]}  Kb6 {[%clk 0:01:08]} 76. Rc1 {[%clk 0:00:05]}  Kb7 {[%clk 0:01:08]} 77. d7 {[%clk 0:00:06]}  Kb6 {[%clk 0:01:08]} 78. d8=Q+ {[%clk 0:00:06]} 1-0


[Site "https://www.chess.com"]

[Event "Titled Tuesday Blitz May 17 Late 2022"]
[White "Jobava, Baadur"]
[Black "Jones, Gawain C B"]
[WhiteFideId "13601520"]
[BlackFideId "409561"]
[WhiteElo "2617"]
[BlackElo "2657"]
[Result "1-0"]
[Round "09"]
[TimeControl "180+1"]
[Date "2022.05.17"]
[WhiteClock "0:00:49"]
[BlackClock "0:00:02"]

1. b3 {[%clk 0:02:47]}  g6 {[%clk 0:02:58]} 2. Bb2 {[%clk 0:02:48]}  Nf6 {[%clk 0:02:59]} 3. c4 {[%clk 0:02:48]}  Bg7 {[%clk 0:02:59]} 4. g3 {[%clk 0:02:48]}  O-O {[%clk 0:02:58]} 5. Bg2 {[%clk 0:02:48]}  c5 {[%clk 0:02:58]} 6. Nf3 {[%clk 0:02:48]}  Nc6 {[%clk 0:02:57]} 7. O-O {[%clk 0:02:47]}  d5 {[%clk 0:02:49]} 8. cxd5 {[%clk 0:02:48]}  Qxd5 {[%clk 0:02:45]} 9. Nc3 {[%clk 0:02:45]}  Qh5 {[%clk 0:02:45]} 10. Rc1 {[%clk 0:02:42]}  Bh3 {[%clk 0:02:44]} 11. e3 {[%clk 0:02:34]}  Ng4 {[%clk 0:02:34]} 12. Na4 {[%clk 0:02:24]}  Bxb2 {[%clk 0:02:11]} 13. Rxc5 {[%clk 0:02:21]}  Nge5 {[%clk 0:01:44]} 14. Nxe5 {[%clk 0:02:09]}  Bxg2 {[%clk 0:01:24]} 15. Nxc6 {[%clk 0:01:55]}  Qh3 {[%clk 0:01:11]} 16. Nxe7+ {[%clk 0:01:53]}  Kh8 {[%clk 0:01:08]} 17. Nxb2 {[%clk 0:01:52]}  Rfe8 {[%clk 0:01:02]} 18. Nd5 {[%clk 0:01:51]}  g5 {[%clk 0:00:43]} 19. Nd3 {[%clk 0:01:49]}  Bxf1 {[%clk 0:00:27]} 20. Qxf1 {[%clk 0:01:44]}  Qxf1+ {[%clk 0:00:25]} 21. Kxf1 {[%clk 0:01:45]}  Rac8 {[%clk 0:00:25]} 22. Ke2 {[%clk 0:01:39]}  b6 {[%clk 0:00:23]} 23. Rxc8 {[%clk 0:01:38]}  Rxc8 {[%clk 0:00:24]} 24. Nc3 {[%clk 0:01:38]}  Kg7 {[%clk 0:00:23]} 25. Nb4 {[%clk 0:01:34]}  f5 {[%clk 0:00:18]} 26. Nbd5 {[%clk 0:01:32]}  Kf7 {[%clk 0:00:17]} 27. d4 {[%clk 0:01:32]}  Ke6 {[%clk 0:00:17]} 28. Kd3 {[%clk 0:01:32]}  Kd6 {[%clk 0:00:11]} 29. a4 {[%clk 0:01:30]}  Re8 {[%clk 0:00:11]} 30. b4 {[%clk 0:01:29]}  Re6 {[%clk 0:00:11]} 31. h4 {[%clk 0:01:17]}  gxh4 {[%clk 0:00:10]} 32. gxh4 {[%clk 0:01:18]}  Rh6 {[%clk 0:00:10]} 33. Nf4 {[%clk 0:01:15]}  Rxh4 {[%clk 0:00:10]} 34. Nb5+ {[%clk 0:01:15]}  Kd7 {[%clk 0:00:09]} 35. Nxa7 {[%clk 0:01:16]}  Rh2 {[%clk 0:00:09]} 36. Ke2 {[%clk 0:01:15]}  Rh1 {[%clk 0:00:09]} 37. Nb5 {[%clk 0:01:12]}  Ra1 {[%clk 0:00:05]} 38. Nc3 {[%clk 0:01:11]}  Kc6 {[%clk 0:00:04]} 39. Kf3 {[%clk 0:01:07]}  Ra3 {[%clk 0:00:03]} 40. Nfe2 {[%clk 0:01:07]}  Ra1 {[%clk 0:00:03]} 41. Kf4 {[%clk 0:01:06]}  Rf1 {[%clk 0:00:03]} 42. f3 {[%clk 0:01:06]}  h5 {[%clk 0:00:03]} 43. Ng3 {[%clk 0:01:05]}  Rc1 {[%clk 0:00:03]} 44. Nce2 {[%clk 0:01:04]}  Rc4 {[%clk 0:00:03]} 45. b5+ {[%clk 0:01:03]}  Kd7 {[%clk 0:00:03]} 46. Nxh5 {[%clk 0:01:02]}  Rxa4 {[%clk 0:00:03]} 47. Kxf5 {[%clk 0:01:00]}  Rb4 {[%clk 0:00:03]} 48. Nc3 {[%clk 0:00:58]}  Rb3 {[%clk 0:00:04]} 49. Nf6+ {[%clk 0:00:58]}  Kc8 {[%clk 0:00:03]} 50. Nfd5 {[%clk 0:00:59]}  Kb7 {[%clk 0:00:03]} 51. e4 {[%clk 0:00:59]}  Rb2 {[%clk 0:00:03]} 52. e5 {[%clk 0:00:58]}  Rd2 {[%clk 0:00:04]} 53. Ke4 {[%clk 0:00:57]}  Rh2 {[%clk 0:00:03]} 54. f4 {[%clk 0:00:57]}  Rh1 {[%clk 0:00:03]} 55. e6 {[%clk 0:00:55]}  Re1+ {[%clk 0:00:04]} 56. Ne3 {[%clk 0:00:55]}  Rh1 {[%clk 0:00:04]} 57. f5 {[%clk 0:00:55]}  Rh8 {[%clk 0:00:04]} 58. Ke5 {[%clk 0:00:54]}  Rc8 {[%clk 0:00:04]} 59. Ncd5 {[%clk 0:00:53]}  Rc1 {[%clk 0:00:04]} 60. e7 {[%clk 0:00:52]}  Rc8 {[%clk 0:00:04]} 61. f6 {[%clk 0:00:51]}  Rh8 {[%clk 0:00:02]} 62. Ke6 {[%clk 0:00:49]} 1-0


[Site "https://www.chess.com"]

[Event "Titled Tuesday Blitz May 17 Late 2022"]
[White "Kobo, Ori"]
[Black "Vypkhaniuk, Ihor"]
[WhiteFideId "2812320"]
[BlackFideId "14112256"]
[WhiteElo "2420"]
[BlackElo "2346"]
[Result "1-0"]
[Round "09"]
[TimeControl "180+1"]
[Date "2022.05.17"]
[WhiteClock "0:00:37"]
[BlackClock "0:00:01"]

1. d4 {[%clk 0:03:00]}  Nf6 {[%clk 0:02:58]} 2. c4 {[%clk 0:03:01]}  c5 {[%clk 0:02:58]} 3. d5 {[%clk 0:03:00]}  b5 {[%clk 0:02:58]} 4. Nf3 {[%clk 0:03:00]}  g6 {[%clk 0:02:56]} 5. Qc2 {[%clk 0:02:53]}  b4 {[%clk 0:02:44]} 6. e4 {[%clk 0:02:52]}  d6 {[%clk 0:02:44]} 7. a3 {[%clk 0:02:50]}  a5 {[%clk 0:02:39]} 8. Bd3 {[%clk 0:02:30]}  Bg7 {[%clk 0:02:38]} 9. O-O {[%clk 0:02:29]}  O-O {[%clk 0:02:37]} 10. axb4 {[%clk 0:02:20]}  cxb4 {[%clk 0:02:38]} 11. Nbd2 {[%clk 0:02:10]}  Nfd7 {[%clk 0:02:15]} 12. Nb3 {[%clk 0:01:57]}  a4 {[%clk 0:02:15]} 13. Nbd4 {[%clk 0:01:57]}  Nc5 {[%clk 0:02:14]} 14. Be3 {[%clk 0:01:55]}  Bg4 {[%clk 0:02:03]} 15. Be2 {[%clk 0:01:54]}  Bd7 {[%clk 0:01:01]} 16. h4 {[%clk 0:01:35]}  Nba6 {[%clk 0:00:58]} 17. h5 {[%clk 0:01:35]}  e6 {[%clk 0:00:29]} 18. h6 {[%clk 0:01:34]}  Bh8 {[%clk 0:00:23]} 19. dxe6 {[%clk 0:01:28]}  fxe6 {[%clk 0:00:23]} 20. Rad1 {[%clk 0:01:28]}  Qc7 {[%clk 0:00:15]} 21. Nb5 {[%clk 0:01:25]}  Bxb5 {[%clk 0:00:15]} 22. cxb5 {[%clk 0:01:26]}  Nb8 {[%clk 0:00:15]} 23. e5 {[%clk 0:01:23]}  b3 {[%clk 0:00:12]} 24. Qc4 {[%clk 0:01:21]}  Nbd7 {[%clk 0:00:10]} 25. Rxd6 {[%clk 0:01:15]}  Nxe5 {[%clk 0:00:08]} 26. Qxc5 {[%clk 0:01:08]}  Qxc5 {[%clk 0:00:08]} 27. Bxc5 {[%clk 0:01:08]}  Ng4 {[%clk 0:00:07]} 28. Ba3 {[%clk 0:01:04]}  Nxh6 {[%clk 0:00:06]} 29. Bc4 {[%clk 0:01:04]}  Nf5 {[%clk 0:00:02]} 30. Rxe6 {[%clk 0:01:02]}  Rfc8 {[%clk 0:00:02]} 31. Bd5 {[%clk 0:00:56]}  Rab8 {[%clk 0:00:02]} 32. b6 {[%clk 0:00:53]}  Kg7 {[%clk 0:00:02]} 33. b7 {[%clk 0:00:51]}  Rd8 {[%clk 0:00:02]} 34. Be4 {[%clk 0:00:49]}  Kf7 {[%clk 0:00:02]} 35. Ng5+ {[%clk 0:00:48]}  Kg8 {[%clk 0:00:02]} 36. Ra6 {[%clk 0:00:43]}  Be5 {[%clk 0:00:01]} 37. Rxa4 {[%clk 0:00:37]} 1-0


[Site "https://www.chess.com"]

[Event "Titled Tuesday Blitz May 17 Late 2022"]
[White "Kruckenhauser, Arthur"]
[Black "Zakhartsov, Vladimir"]
[WhiteFideId "1642812"]
[BlackFideId "4145097"]
[WhiteElo "2243"]
[BlackElo "2428"]
[Result "1/2-1/2"]
[Round "09"]
[TimeControl "180+1"]
[Date "2022.05.17"]
[WhiteClock "0:00:05"]
[BlackClock "0:00:03"]

1. e4 {[%clk 0:03:00]}  c6 {[%clk 0:02:58]} 2. c4 {[%clk 0:03:00]}  d5 {[%clk 0:02:58]} 3. exd5 {[%clk 0:03:01]}  cxd5 {[%clk 0:02:59]} 4. d4 {[%clk 0:03:02]}  Nf6 {[%clk 0:02:59]} 5. Nc3 {[%clk 0:03:01]}  g6 {[%clk 0:02:58]} 6. cxd5 {[%clk 0:03:01]}  Bg7 {[%clk 0:02:58]} 7. Qb3 {[%clk 0:02:57]}  O-O {[%clk 0:02:57]} 8. a4 {[%clk 0:02:38]}  e6 {[%clk 0:02:28]} 9. dxe6 {[%clk 0:02:33]}  Bxe6 {[%clk 0:02:25]} 10. Qxb7 {[%clk 0:02:33]}  Nbd7 {[%clk 0:02:24]} 11. Nf3 {[%clk 0:02:33]}  Re8 {[%clk 0:02:23]} 12. Be2 {[%clk 0:02:27]}  Rb8 {[%clk 0:02:20]} 13. Qa6 {[%clk 0:02:24]}  Nd5 {[%clk 0:02:15]} 14. O-O {[%clk 0:02:22]}  Nb4 {[%clk 0:02:14]} 15. Qd6 {[%clk 0:02:12]}  Nb6 {[%clk 0:02:08]} 16. Qxd8 {[%clk 0:02:11]}  Rexd8 {[%clk 0:02:09]} 17. Bg5 {[%clk 0:02:10]}  Rd7 {[%clk 0:02:05]} 18. Ne4 {[%clk 0:01:59]}  Nc2 {[%clk 0:01:58]} 19. Rad1 {[%clk 0:01:31]}  Nxa4 {[%clk 0:01:40]} 20. Nf6+ {[%clk 0:01:30]}  Bxf6 {[%clk 0:01:39]} 21. Bxf6 {[%clk 0:01:31]}  Bb3 {[%clk 0:01:25]} 22. Rc1 {[%clk 0:01:23]}  Rb6 {[%clk 0:01:23]} 23. Be5 {[%clk 0:01:08]}  f6 {[%clk 0:01:21]} 24. Bg3 {[%clk 0:01:07]}  Nxb2 {[%clk 0:01:18]} 25. Rb1 {[%clk 0:01:07]}  Bd5 {[%clk 0:01:12]} 26. Rfc1 {[%clk 0:01:01]}  Bxf3 {[%clk 0:00:55]} 27. Bxf3 {[%clk 0:01:02]}  Nxd4 {[%clk 0:00:54]} 28. Rc8+ {[%clk 0:00:47]}  Kg7 {[%clk 0:00:52]} 29. Ba8 {[%clk 0:00:46]}  Nc4 {[%clk 0:00:40]} 30. Re1 {[%clk 0:00:40]}  Ne2+ {[%clk 0:00:38]} 31. Kh1 {[%clk 0:00:38]}  Nxg3+ {[%clk 0:00:38]} 32. hxg3 {[%clk 0:00:39]}  Nd6 {[%clk 0:00:34]} 33. Rc5 {[%clk 0:00:37]}  Nf5 {[%clk 0:00:32]} 34. Bd5 {[%clk 0:00:20]}  Rbd6 {[%clk 0:00:29]} 35. Bf3 {[%clk 0:00:20]}  Nd4 {[%clk 0:00:27]} 36. Ra5 {[%clk 0:00:19]}  Nxf3 {[%clk 0:00:25]} 37. gxf3 {[%clk 0:00:20]}  Rd1 {[%clk 0:00:24]} 38. Rxd1 {[%clk 0:00:18]}  Rxd1+ {[%clk 0:00:20]} 39. Kg2 {[%clk 0:00:19]}  Rd7 {[%clk 0:00:20]} 40. f4 {[%clk 0:00:20]}  h5 {[%clk 0:00:20]} 41. Kf3 {[%clk 0:00:20]}  Kh6 {[%clk 0:00:19]} 42. Ra6 {[%clk 0:00:20]}  Kg7 {[%clk 0:00:18]} 43. Kg2 {[%clk 0:00:20]}  Kf7 {[%clk 0:00:18]} 44. Kf3 {[%clk 0:00:21]}  Re7 {[%clk 0:00:18]} 45. Kg2 {[%clk 0:00:21]}  Kg7 {[%clk 0:00:18]} 46. Kf3 {[%clk 0:00:21]}  Rf7 {[%clk 0:00:18]} 47. Kg2 {[%clk 0:00:22]}  g5 {[%clk 0:00:17]} 48. fxg5 {[%clk 0:00:18]}  fxg5 {[%clk 0:00:18]} 49. Kg1 {[%clk 0:00:13]}  Re7 {[%clk 0:00:09]} 50. Kg2 {[%clk 0:00:13]}  Rb7 {[%clk 0:00:09]} 51. Kf3 {[%clk 0:00:13]}  Rf7+ {[%clk 0:00:09]} 52. Kg2 {[%clk 0:00:14]}  Kh7 {[%clk 0:00:09]} 53. Kg1 {[%clk 0:00:14]}  Kg8 {[%clk 0:00:08]} 54. Rg6+ {[%clk 0:00:13]}  Rg7 {[%clk 0:00:08]} 55. Ra6 {[%clk 0:00:13]}  h4 {[%clk 0:00:05]} 56. gxh4 {[%clk 0:00:12]}  gxh4+ {[%clk 0:00:06]} 57. Kh2 {[%clk 0:00:13]}  Rh7 {[%clk 0:00:05]} 58. Kh3 {[%clk 0:00:13]}  Kf8 {[%clk 0:00:05]} 59. f4 {[%clk 0:00:12]}  Ke8 {[%clk 0:00:06]} 60. f5 {[%clk 0:00:12]}  Kd8 {[%clk 0:00:05]} 61. Re6 {[%clk 0:00:05]}  Kd7 {[%clk 0:00:04]} 62. Ra6 {[%clk 0:00:05]}  Kc8 {[%clk 0:00:04]} 63. f6 {[%clk 0:00:06]}  Kd8 {[%clk 0:00:04]} 64. Re6 {[%clk 0:00:04]}  Kd7 {[%clk 0:00:03]} 65. Ra6 {[%clk 0:00:04]}  Ke8 {[%clk 0:00:04]} 66. Re6+ {[%clk 0:00:05]}  Kf8 {[%clk 0:00:04]} 67. Ra6 {[%clk 0:00:05]}  Rb7 {[%clk 0:00:02]} 68. Kxh4 {[%clk 0:00:05]}  Kf7 {[%clk 0:00:03]} 69. Kg5 {[%clk 0:00:05]}  Rb5+ {[%clk 0:00:03]} 70. Kf4 {[%clk 0:00:06]}  Rb6 {[%clk 0:00:04]} 71. Rxa7+ {[%clk 0:00:06]}  Kxf6 {[%clk 0:00:03]} 72. Ra5 {[%clk 0:00:05]} 1/2-1/2


[Site "https://www.chess.com"]

[Event "Titled Tuesday Blitz May 17 Late 2022"]
[White "Lin, Dachey"]
[Black "Karttunen, Mika"]
[WhiteFideId "2029650"]
[BlackFideId "502081"]
[WhiteElo "2313"]
[BlackElo "2343"]
[Result "0-1"]
[Round "09"]
[TimeControl "180+1"]
[Date "2022.05.17"]
[WhiteClock "0:01:15"]
[BlackClock "0:01:15"]

1. g4 {[%clk 0:03:00]}  d5 {[%clk 0:02:59]} 2. Bg2 {[%clk 0:02:54]}  c6 {[%clk 0:02:58]} 3. g5 {[%clk 0:02:54]}  h6 {[%clk 0:02:58]} 4. h4 {[%clk 0:02:54]}  hxg5 {[%clk 0:02:57]} 5. hxg5 {[%clk 0:02:55]}  Rxh1 {[%clk 0:02:57]} 6. Bxh1 {[%clk 0:02:55]}  e5 {[%clk 0:02:57]} 7. d4 {[%clk 0:02:55]}  e4 {[%clk 0:02:57]} 8. f3 {[%clk 0:02:56]}  exf3 {[%clk 0:02:52]} 9. Nxf3 {[%clk 0:02:56]}  Bf5 {[%clk 0:02:51]} 10. c4 {[%clk 0:02:53]}  Bb4+ {[%clk 0:02:47]} 11. Nc3 {[%clk 0:02:52]}  Ne7 {[%clk 0:02:45]} 12. cxd5 {[%clk 0:02:51]}  Nxd5 {[%clk 0:02:38]} 13. Bd2 {[%clk 0:02:49]}  Nxc3 {[%clk 0:02:32]} 14. bxc3 {[%clk 0:02:49]}  Bd6 {[%clk 0:02:31]} 15. Qb3 {[%clk 0:02:37]}  Bg3+ {[%clk 0:02:29]} 16. Kf1 {[%clk 0:02:33]}  Qc7 {[%clk 0:02:25]} 17. c4 {[%clk 0:02:06]}  Nd7 {[%clk 0:01:46]} 18. Qe3+ {[%clk 0:02:05]}  Kf8 {[%clk 0:01:46]} 19. Bb4+ {[%clk 0:01:42]}  Kg8 {[%clk 0:01:41]} 20. Rd1 {[%clk 0:01:34]}  Nb6 {[%clk 0:01:37]} 21. Ba5 {[%clk 0:01:28]}  Nxc4 {[%clk 0:01:31]} 22. Qc3 {[%clk 0:01:26]}  Nxa5 {[%clk 0:01:31]} 23. d5 {[%clk 0:01:26]}  Re8 {[%clk 0:01:27]} 24. d6 {[%clk 0:01:23]}  Bxd6 {[%clk 0:01:22]} 25. Rxd6 {[%clk 0:01:17]}  Qxd6 {[%clk 0:01:21]} 26. Qxa5 {[%clk 0:01:17]}  Qd1+ {[%clk 0:01:15]} 27. Qe1 {[%clk 0:01:17]}  Qxe1+ {[%clk 0:01:14]} 28. Kxe1 {[%clk 0:01:14]}  Be4 {[%clk 0:01:14]} 29. Kd2 {[%clk 0:01:14]}  Bxf3 {[%clk 0:01:14]} 30. Bxf3 {[%clk 0:01:15]}  Re5 {[%clk 0:01:15]} 0-1


[Site "https://www.chess.com"]

[Event "Titled Tuesday Blitz May 17 Late 2022"]
[White "Martinez Reyes, Pedro Ramon"]
[Black "D`Arruda, Ricardo D."]
[WhiteFideId "3901807"]
[BlackFideId "100692"]
[WhiteElo "2410"]
[BlackElo "2488"]
[Result "1-0"]
[Round "09"]
[TimeControl "180+1"]
[Date "2022.05.17"]
[WhiteClock "0:01:55"]
[BlackClock "0:00:09"]

1. Nf3 {[%clk 0:03:00]}  d5 {[%clk 0:02:58]} 2. g3 {[%clk 0:03:01]}  Nf6 {[%clk 0:02:58]} 3. Bg2 {[%clk 0:03:02]}  g6 {[%clk 0:02:58]} 4. O-O {[%clk 0:03:03]}  Bg7 {[%clk 0:02:58]} 5. d4 {[%clk 0:03:03]}  O-O {[%clk 0:02:58]} 6. a4 {[%clk 0:03:04]}  c6 {[%clk 0:02:57]} 7. a5 {[%clk 0:03:03]}  Nbd7 {[%clk 0:02:53]} 8. Nbd2 {[%clk 0:03:03]}  Qc7 {[%clk 0:02:49]} 9. c4 {[%clk 0:03:03]}  e5 {[%clk 0:02:48]} 10. dxe5 {[%clk 0:02:59]}  Nxe5 {[%clk 0:02:47]} 11. Nxe5 {[%clk 0:02:58]}  Qxe5 {[%clk 0:02:48]} 12. Nf3 {[%clk 0:02:59]}  Qe7 {[%clk 0:02:43]} 13. Bf4 {[%clk 0:02:52]}  a6 {[%clk 0:02:24]} 14. Qa4 {[%clk 0:02:45]}  Qxe2 {[%clk 0:02:07]} 15. Bd6 {[%clk 0:02:44]}  Re8 {[%clk 0:01:55]} 16. c5 {[%clk 0:02:38]}  Ne4 {[%clk 0:01:47]} 17. Bf4 {[%clk 0:02:35]}  Qb5 {[%clk 0:01:41]} 18. Qd1 {[%clk 0:02:28]}  Qxb2 {[%clk 0:01:34]} 19. Rb1 {[%clk 0:02:25]}  Nc3 {[%clk 0:01:33]} 20. Qd3 {[%clk 0:02:19]}  Nxb1 {[%clk 0:01:30]} 21. Rxb1 {[%clk 0:02:20]}  Bf5 {[%clk 0:01:25]} 22. Rxb2 {[%clk 0:02:20]}  Bxd3 {[%clk 0:01:21]} 23. Rxb7 {[%clk 0:02:21]}  Bf6 {[%clk 0:01:03]} 24. h4 {[%clk 0:02:19]}  Re7 {[%clk 0:01:03]} 25. Rb6 {[%clk 0:02:17]}  Bb5 {[%clk 0:01:01]} 26. Bd6 {[%clk 0:02:15]}  Ree8 {[%clk 0:00:53]} 27. Bh3 {[%clk 0:02:12]}  Bc3 {[%clk 0:00:39]} 28. Bd7 {[%clk 0:02:09]}  Bxa5 {[%clk 0:00:37]} 29. Bxe8 {[%clk 0:02:06]}  Rxe8 {[%clk 0:00:32]} 30. Rb7 {[%clk 0:02:07]}  Bc3 {[%clk 0:00:24]} 31. Ng5 {[%clk 0:02:07]}  h6 {[%clk 0:00:14]} 32. Nxf7 {[%clk 0:02:06]}  Bg7 {[%clk 0:00:15]} 33. Bf4 {[%clk 0:02:00]}  a5 {[%clk 0:00:13]} 34. Nd6 {[%clk 0:01:56]}  a4 {[%clk 0:00:09]} 35. Nxe8 {[%clk 0:01:55]} 1-0


[Site "https://www.chess.com"]